[Event "Early-Titled-Tuesday-Blitz-February-06-2024"]
[Site "Chess.com"]
[Date "2024.02.06"]
[Round "5"]
[White "AndresDelgado77"]
[Black "anasta10"]
[Result "0-1"]
[WhiteElo "2355"]
[BlackElo "2547"]
[TimeControl "180+1"]
[EndTime "8:55:20 PST"]
[Termination "anasta10 won on time"]

1. e4 {[%clk 0:02:21.1]} 1... g6 {[%clk 0:02:57.8]} 2. d4 {[%clk 0:02:16.8]}
2... Bg7 {[%clk 0:02:55.6]} 3. Nf3 {[%clk 0:01:23.3]} 3... d6 {[%clk 0:02:54]}
4. Bc4 {[%clk 0:01:15.7]} 4... Nf6 {[%clk 0:02:54.1]} 5. Qe2 {[%clk 0:01:13.8]}
5... O-O {[%clk 0:02:53.5]} 6. h3 {[%clk 0:01:03]} 6... d5 {[%clk 0:02:50.5]} 7.
exd5 {[%clk 0:01:00.3]} 7... Nxd5 {[%clk 0:02:51.4]} 8. O-O {[%clk 0:01:00]}
8... b6 {[%clk 0:02:45.2]} 9. Bxd5 {[%clk 0:00:56.2]} 9... Qxd5 {[%clk
0:02:44.9]} 10. Qxe7 {[%clk 0:00:56.4]} 10... Bxh3 {[%clk 0:02:26.3]} 11. Nc3
{[%clk 0:00:37.7]} 11... Qb7 {[%clk 0:02:25.7]} 12. Nb5 {[%clk 0:00:33.3]} 12...
Bg4 {[%clk 0:01:57]} 13. Ne5 {[%clk 0:00:28.8]} 13... Nc6 {[%clk 0:01:52.9]} 14.
Qxc7 {[%clk 0:00:23.9]} 14... Qxc7 {[%clk 0:01:49.2]} 15. Nxc7 {[%clk
0:00:23.6]} 15... Nxe5 {[%clk 0:01:40.9]} 16. Nxa8 {[%clk 0:00:20.5]} 16... Nc6
{[%clk 0:01:38.6]} 17. Nc7 {[%clk 0:00:19.5]} 17... Nxd4 {[%clk 0:01:38.8]} 18.
Be3 {[%clk 0:00:17.6]} 18... Nxc2 {[%clk 0:01:29.7]} 19. Rac1 {[%clk 0:00:16.1]}
19... Nb4 {[%clk 0:01:29.4]} 20. a3 {[%clk 0:00:15.3]} 20... Nd3 {[%clk
0:01:29.4]} 21. Rc3 {[%clk 0:00:14.9]} 21... Nxb2 {[%clk 0:01:16.9]} 22. Rb3
{[%clk 0:00:14.1]} 22... Nc4 {[%clk 0:01:03.9]} 23. a4 {[%clk 0:00:13.7]} 23...
Rc8 {[%clk 0:00:55.6]} 24. Nd5 {[%clk 0:00:13.6]} 24... Rd8 {[%clk 0:00:53.4]}
25. Rd3 {[%clk 0:00:10]} 25... Kf8 {[%clk 0:00:39.7]} 26. Nxb6 {[%clk
0:00:09.2]} 26... Rxd3 {[%clk 0:00:38.4]} 27. Nxc4 {[%clk 0:00:08.3]} 27... a6
{[%clk 0:00:30.1]} 28. Bc5+ {[%clk 0:00:07.2]} 28... Kg8 {[%clk 0:00:22.8]} 29.
Ne3 {[%clk 0:00:06.9]} 29... Be6 {[%clk 0:00:21]} 30. a5 {[%clk 0:00:06]} 30...
h5 {[%clk 0:00:20.8]} 31. Rb1 {[%clk 0:00:05.4]} 31... Be5 {[%clk 0:00:16.7]}
0-1

[Event "Early-Titled-Tuesday-Blitz-February-06-2024"]
[Site "Chess.com"]
[Date "2024.02.06"]
[Round "5"]
[White "Kostukov_Alex"]
[Black "Mourinho_Jose"]
[Result "0-1"]
[WhiteElo "2305"]
[BlackElo "2483"]
[TimeControl "180+1"]
[EndTime "8:55:21 PST"]
[Termination "Mourinho_Jose won on time"]

1. g3 {[%clk 0:02:59.2]} 1... d5 {[%clk 0:02:59.6]} 2. Bg2 {[%clk 0:02:57.3]}
2... c6 {[%clk 0:02:59.3]} 3. d3 {[%clk 0:02:57.6]} 3... Nf6 {[%clk 0:02:59.9]}
4. e4 {[%clk 0:02:57.8]} 4... dxe4 {[%clk 0:02:55.4]} 5. dxe4 {[%clk 0:02:58.7]}
5... Qxd1+ {[%clk 0:02:55.4]} 6. Kxd1 {[%clk 0:02:59.6]} 6... e5 {[%clk
0:02:52.7]} 7. f3 {[%clk 0:02:59.1]} 7... Bc5 {[%clk 0:02:47.1]} 8. Nd2 {[%clk
0:02:50.9]} 8... Be6 {[%clk 0:02:41.7]} 9. Bh3 {[%clk 0:02:51]} 9... O-O {[%clk
0:02:28.7]} 10. Bxe6 {[%clk 0:02:48.1]} 10... fxe6 {[%clk 0:02:29.6]} 11. Nh3
{[%clk 0:02:47.9]} 11... Nbd7 {[%clk 0:02:25.7]} 12. Nb3 {[%clk 0:02:46.9]}
12... Bb6 {[%clk 0:02:22.2]} 13. a4 {[%clk 0:02:46]} 13... a6 {[%clk 0:02:18.9]}
14. Ke2 {[%clk 0:02:45.2]} 14... Nc5 {[%clk 0:02:10]} 15. Nd2 {[%clk 0:02:40.1]}
15... h6 {[%clk 0:02:03.6]} 16. Nc4 {[%clk 0:02:40]} 16... Bc7 {[%clk
0:02:03.9]} 17. Be3 {[%clk 0:02:38.2]} 17... Ncd7 {[%clk 0:01:56.9]} 18. Rhd1
{[%clk 0:02:35.2]} 18... b5 {[%clk 0:01:52]} 19. Nd2 {[%clk 0:02:03.6]} 19...
Nb6 {[%clk 0:01:35]} 20. a5 {[%clk 0:01:58.8]} 20... Na4 {[%clk 0:01:34]} 21.
Nf2 {[%clk 0:00:51.3]} 21... Nxb2 {[%clk 0:01:32.3]} 22. Rdb1 {[%clk 0:00:51.2]}
22... Na4 {[%clk 0:01:32.5]} 23. Kf1 {[%clk 0:00:27.9]} 23... Bxa5 {[%clk
0:01:27.9]} 24. Nd3 {[%clk 0:00:26.9]} 24... Rfd8 {[%clk 0:01:23.2]} 25. Nb3
{[%clk 0:00:20.7]} 25... Bc3 {[%clk 0:01:20.9]} 26. Ra2 {[%clk 0:00:18.3]} 26...
Nd7 {[%clk 0:01:19.6]} 27. Kg2 {[%clk 0:00:16.8]} 27... c5 {[%clk 0:01:17]} 28.
Nd2 {[%clk 0:00:12.8]} 28... Bd4 {[%clk 0:01:16.3]} 29. Bxd4 {[%clk 0:00:12.7]}
29... exd4 {[%clk 0:01:16.9]} 30. Ra3 {[%clk 0:00:10.5]} 30... Rac8 {[%clk
0:01:11.4]} 31. Nf4 {[%clk 0:00:10.8]} 31... Kf7 {[%clk 0:01:10.3]} 32. Rba1
{[%clk 0:00:08.7]} 32... Ndb6 {[%clk 0:01:05.5]} 33. h4 {[%clk 0:00:08]} 33...
c4 {[%clk 0:01:03]} 34. h5 {[%clk 0:00:08.2]} 34... e5 {[%clk 0:01:02.3]} 35.
Ng6 {[%clk 0:00:07.6]} 35... Ke6 {[%clk 0:00:55.9]} 36. f4 {[%clk 0:00:08]}
36... exf4 {[%clk 0:00:50.2]} 37. gxf4 {[%clk 0:00:08.9]} 37... c3 {[%clk
0:00:35]} 38. f5+ {[%clk 0:00:07.1]} 38... Kf6 {[%clk 0:00:31.7]} 39. Nf3 {[%clk
0:00:05.6]} 39... d3 {[%clk 0:00:30.6]} 0-1

[Event "Early-Titled-Tuesday-Blitz-February-06-2024"]
[Site "Chess.com"]
[Date "2024.02.06"]
[Round "5"]
[White "Arystanner"]
[Black "simonachess"]
[Result "1-0"]
[WhiteElo "2864"]
[BlackElo "2335"]
[TimeControl "180+1"]
[EndTime "8:55:22 PST"]
[Termination "Arystanner won by resignation"]

1. d4 {[%clk 0:02:56.8]} 1... Nf6 {[%clk 0:02:36]} 2. Nf3 {[%clk 0:02:55.7]}
2... e6 {[%clk 0:02:36.2]} 3. e3 {[%clk 0:02:55.5]} 3... b6 {[%clk 0:02:36.7]}
4. Bd3 {[%clk 0:02:55.8]} 4... Bb7 {[%clk 0:02:36.8]} 5. O-O {[%clk 0:02:56.5]}
5... Be7 {[%clk 0:02:37.4]} 6. b3 {[%clk 0:02:56.8]} 6... O-O {[%clk 0:02:37]}
7. Bb2 {[%clk 0:02:57.2]} 7... d6 {[%clk 0:02:37.4]} 8. Nbd2 {[%clk 0:02:57.1]}
8... Nbd7 {[%clk 0:02:37.7]} 9. e4 {[%clk 0:02:53.7]} 9... c5 {[%clk 0:02:36]}
10. e5 {[%clk 0:02:53.8]} 10... dxe5 {[%clk 0:02:35.6]} 11. dxe5 {[%clk
0:02:54.7]} 11... Nd5 {[%clk 0:02:34.1]} 12. a3 {[%clk 0:02:46.1]} 12... Nf4
{[%clk 0:02:30]} 13. Be4 {[%clk 0:02:46.5]} 13... Qc7 {[%clk 0:02:16.8]} 14. g3
{[%clk 0:02:46.5]} 14... Ng6 {[%clk 0:02:13.3]} 15. Qe2 {[%clk 0:02:43.7]} 15...
Rfd8 {[%clk 0:02:08.8]} 16. Rad1 {[%clk 0:02:43.1]} 16... a5 {[%clk 0:02:05.6]}
17. a4 {[%clk 0:02:42.7]} 17... Bd5 {[%clk 0:01:51.6]} 18. Bxd5 {[%clk
0:02:40.8]} 18... exd5 {[%clk 0:01:52.5]} 19. e6 {[%clk 0:02:41.7]} 19... Ndf8
{[%clk 0:01:49.3]} 20. exf7+ {[%clk 0:02:41.2]} 20... Kxf7 {[%clk 0:01:38.6]}
21. Rfe1 {[%clk 0:02:41.7]} 21... Kg8 {[%clk 0:01:35.9]} 22. h4 {[%clk
0:02:41.1]} 22... Re8 {[%clk 0:01:32.1]} 23. Qd3 {[%clk 0:02:37.8]} 23... Rad8
{[%clk 0:01:24.1]} 24. h5 {[%clk 0:02:38.3]} 24... Nh8 {[%clk 0:01:24.2]} 25.
Be5 {[%clk 0:02:27.3]} 25... Qc6 {[%clk 0:01:20]} 26. Bf4 {[%clk 0:02:20.4]}
26... Nf7 {[%clk 0:01:17.2]} 27. Qf5 {[%clk 0:01:59.1]} 27... Bd6 {[%clk
0:01:09.9]} 28. Bxd6 {[%clk 0:01:27.9]} 28... Qxd6 {[%clk 0:01:10.8]} 29. Rxe8
{[%clk 0:01:22.1]} 29... Rxe8 {[%clk 0:01:10.2]} 30. Nc4 {[%clk 0:01:22.5]}
30... Qe6 {[%clk 0:00:28.9]} 31. Qxe6 {[%clk 0:01:22]} 31... Rxe6 {[%clk
0:00:29.5]} 32. Rxd5 {[%clk 0:01:22.6]} 32... h6 {[%clk 0:00:21.6]} 33. Nfe5
{[%clk 0:01:18.8]} 33... Nxe5 {[%clk 0:00:20.1]} 34. Rxe5 {[%clk 0:01:19.6]}
34... Rxe5 {[%clk 0:00:17.1]} 35. Nxe5 {[%clk 0:01:19.9]} 35... Ne6 {[%clk
0:00:17.6]} 36. c3 {[%clk 0:01:15.2]} 36... Nc7 {[%clk 0:00:13.1]} 37. Nc4
{[%clk 0:01:12.2]} 37... Nd5 {[%clk 0:00:12.8]} 38. f4 {[%clk 0:01:08.9]} 38...
Kf7 {[%clk 0:00:13.4]} 39. Kf2 {[%clk 0:01:09.3]} 39... Ke7 {[%clk 0:00:14.1]}
40. Kf3 {[%clk 0:01:07.8]} 40... Kd7 {[%clk 0:00:14.4]} 41. g4 {[%clk
0:01:08.4]} 41... Kc6 {[%clk 0:00:14.3]} 42. Ne5+ {[%clk 0:01:07.9]} 42... Kd6
{[%clk 0:00:14.6]} 43. c4 {[%clk 0:01:07.8]} 43... Nf6 {[%clk 0:00:13.9]} 44.
Nd3 {[%clk 0:01:01.5]} 44... Ke6 {[%clk 0:00:13.4]} 45. Nf2 {[%clk 0:01:01.6]}
45... Ne8 {[%clk 0:00:12.8]} 46. Ne4 {[%clk 0:01:00.6]} 46... Nc7 {[%clk
0:00:12.3]} 47. g5 {[%clk 0:00:59.5]} 47... Kf5 {[%clk 0:00:12.4]} 48. Ng3+
{[%clk 0:00:59.6]} 48... Ke6 {[%clk 0:00:12.6]} 49. Kg4 {[%clk 0:01:00.2]} 49...
Ne8 {[%clk 0:00:12.4]} 50. Nf5 {[%clk 0:01:00]} 50... hxg5 {[%clk 0:00:11.1]}
51. fxg5 {[%clk 0:01:00.6]} 51... Ke5 {[%clk 0:00:09.9]} 52. Nxg7 {[%clk
0:00:59.9]} 52... Nxg7 {[%clk 0:00:08.5]} 53. h6 {[%clk 0:01:00.5]} 53... Ne6
{[%clk 0:00:08.6]} 54. h7 {[%clk 0:01:00.6]} 1-0

[Event "Early-Titled-Tuesday-Blitz-February-06-2024"]
[Site "Chess.com"]
[Date "2024.02.06"]
[Round "5"]
[White "JoachimBN"]
[Black "viniciusrego"]
[Result "1-0"]
[WhiteElo "2616"]
[BlackElo "2445"]
[TimeControl "180+1"]
[EndTime "8:55:23 PST"]
[Termination "JoachimBN won by resignation"]

1. d4 {[%clk 0:02:59.6]} 1... Nf6 {[%clk 0:02:55.9]} 2. c4 {[%clk 0:02:55.4]}
2... e6 {[%clk 0:02:56.4]} 3. Nc3 {[%clk 0:02:53.9]} 3... Bb4 {[%clk 0:02:57]}
4. f3 {[%clk 0:02:46.8]} 4... d5 {[%clk 0:02:56.4]} 5. a3 {[%clk 0:02:44.9]}
5... Bxc3+ {[%clk 0:02:56.5]} 6. bxc3 {[%clk 0:02:45.8]} 6... c5 {[%clk
0:02:57.1]} 7. cxd5 {[%clk 0:02:45.1]} 7... Nxd5 {[%clk 0:02:58]} 8. Qd2 {[%clk
0:01:56.3]} 8... Qa5 {[%clk 0:02:42.5]} 9. e4 {[%clk 0:01:52.9]} 9... Nf6 {[%clk
0:02:38.5]} 10. Rb1 {[%clk 0:01:40.5]} 10... cxd4 {[%clk 0:02:32.1]} 11. cxd4
{[%clk 0:01:40.3]} 11... Qxd2+ {[%clk 0:02:28.5]} 12. Bxd2 {[%clk 0:01:40.6]}
12... Nc6 {[%clk 0:02:28.6]} 13. Bb5 {[%clk 0:01:33.4]} 13... O-O {[%clk
0:02:28]} 14. Ne2 {[%clk 0:01:32.2]} 14... Rd8 {[%clk 0:02:27.3]} 15. Be3 {[%clk
0:01:29.7]} 15... Bd7 {[%clk 0:02:26.2]} 16. Kf2 {[%clk 0:01:27]} 16... a6
{[%clk 0:02:25.5]} 17. Bd3 {[%clk 0:01:24.4]} 17... b5 {[%clk 0:02:24.6]} 18.
Rhc1 {[%clk 0:01:24.2]} 18... Rac8 {[%clk 0:02:21.5]} 19. Rc5 {[%clk 0:01:20.4]}
19... Na5 {[%clk 0:02:15.6]} 20. Bd2 {[%clk 0:01:04.5]} 20... Nc4 {[%clk
0:02:07.4]} 21. Bxc4 {[%clk 0:01:04.8]} 21... bxc4 {[%clk 0:02:08]} 22. Rxc8
{[%clk 0:01:04]} 22... Rxc8 {[%clk 0:02:08.9]} 23. Rb6 {[%clk 0:01:02.3]} 23...
Rc6 {[%clk 0:01:47.7]} 24. Rb8+ {[%clk 0:00:58.1]} 24... Rc8 {[%clk 0:01:46.5]}
25. Rb7 {[%clk 0:00:58.3]} 25... Kf8 {[%clk 0:01:44.4]} 26. Bb4+ {[%clk
0:00:56.6]} 26... Ke8 {[%clk 0:01:44]} 27. Nc3 {[%clk 0:00:57.1]} 27... Ng8
{[%clk 0:01:25]} 28. Ke3 {[%clk 0:00:56]} 28... Ne7 {[%clk 0:01:24]} 29. Bxe7
{[%clk 0:00:54.9]} 29... Kxe7 {[%clk 0:01:24.9]} 30. d5 {[%clk 0:00:47.5]} 30...
exd5 {[%clk 0:01:21.9]} 31. exd5 {[%clk 0:00:45.1]} 31... Re8 {[%clk 0:00:41.5]}
32. Kd4 {[%clk 0:00:45]} 32... Kd8 {[%clk 0:00:39.3]} 33. Kxc4 {[%clk 0:00:37]}
33... Re1 {[%clk 0:00:39]} 34. Ne4 {[%clk 0:00:33.4]} 34... f5 {[%clk
0:00:32.6]} 35. Nc5 {[%clk 0:00:27.8]} 35... Bb5+ {[%clk 0:00:30]} 36. Kd4
{[%clk 0:00:26.4]} 36... Rd1+ {[%clk 0:00:26.4]} 37. Ke5 {[%clk 0:00:26.4]}
37... Kc8 {[%clk 0:00:20.6]} 38. Rxg7 {[%clk 0:00:21.5]} 38... Bc4 {[%clk
0:00:21.2]} 39. Rd7 {[%clk 0:00:21.8]} 39... f4 {[%clk 0:00:19.8]} 40. Rd6
{[%clk 0:00:19.2]} 40... Bb5 {[%clk 0:00:20.1]} 41. Ne4 {[%clk 0:00:17]} 41...
Bc4 {[%clk 0:00:18.1]} 42. Rc6+ {[%clk 0:00:16.2]} 1-0

[Event "Early-Titled-Tuesday-Blitz-February-06-2024"]
[Site "Chess.com"]
[Date "2024.02.06"]
[Round "5"]
[White "PolandHussars"]
[Black "KetiTsatsalashvili"]
[Result "0-1"]
[WhiteElo "2572"]
[BlackElo "2440"]
[TimeControl "180+1"]
[EndTime "8:55:23 PST"]
[Termination "KetiTsatsalashvili won by checkmate"]

1. e4 {[%clk 0:03:00.9]} 1... c5 {[%clk 0:02:59.4]} 2. Ne2 {[%clk 0:03:00.3]}
2... d6 {[%clk 0:02:58.3]} 3. g3 {[%clk 0:03:00.3]} 3... Nf6 {[%clk 0:02:57.4]}
4. Bg2 {[%clk 0:03:00.6]} 4... g6 {[%clk 0:02:57.3]} 5. c3 {[%clk 0:03:00.8]}
5... Bg7 {[%clk 0:02:57.8]} 6. d4 {[%clk 0:03:01.1]} 6... cxd4 {[%clk
0:02:57.4]} 7. cxd4 {[%clk 0:03:02]} 7... O-O {[%clk 0:02:57.5]} 8. Nbc3 {[%clk
0:03:02.2]} 8... e6 {[%clk 0:02:50]} 9. O-O {[%clk 0:03:01.2]} 9... d5 {[%clk
0:02:49.4]} 10. e5 {[%clk 0:03:01.5]} 10... Nfd7 {[%clk 0:02:49.3]} 11. Be3
{[%clk 0:03:01.4]} 11... Nc6 {[%clk 0:02:48.9]} 12. Qd2 {[%clk 0:03:00.9]} 12...
Na5 {[%clk 0:02:47]} 13. b3 {[%clk 0:02:57.6]} 13... Re8 {[%clk 0:02:45.6]} 14.
Nb5 {[%clk 0:02:53.5]} 14... Bf8 {[%clk 0:02:31.9]} 15. Rac1 {[%clk 0:02:47.9]}
15... Nc6 {[%clk 0:02:30.1]} 16. g4 {[%clk 0:02:27]} 16... f6 {[%clk 0:02:22.7]}
17. f4 {[%clk 0:02:20.4]} 17... a6 {[%clk 0:02:18.4]} 18. Nbc3 {[%clk
0:02:12.1]} 18... Ba3 {[%clk 0:02:16.7]} 19. Rce1 {[%clk 0:02:03]} 19... Ne7
{[%clk 0:02:15.7]} 20. Ng3 {[%clk 0:01:53.8]} 20... Bb4 {[%clk 0:02:09.4]} 21.
Rc1 {[%clk 0:01:53.3]} 21... f5 {[%clk 0:02:05.5]} 22. gxf5 {[%clk 0:01:47.1]}
22... Nxf5 {[%clk 0:02:05.7]} 23. Nxf5 {[%clk 0:01:46.7]} 23... gxf5 {[%clk
0:02:06.6]} 24. Qe2 {[%clk 0:01:39.3]} 24... Nf8 {[%clk 0:02:04.3]} 25. Kh1
{[%clk 0:01:36.5]} 25... Bd7 {[%clk 0:02:02.6]} 26. Bf3 {[%clk 0:01:32.1]} 26...
Re7 {[%clk 0:01:59.8]} 27. Rg1+ {[%clk 0:01:18.2]} 27... Kh8 {[%clk 0:02:00.1]}
28. Bh5 {[%clk 0:01:05.7]} 28... Be8 {[%clk 0:01:57.3]} 29. Bd2 {[%clk
0:00:59.1]} 29... Ba3 {[%clk 0:01:54.4]} 30. Rc2 {[%clk 0:00:57.4]} 30... Ng6
{[%clk 0:01:46.9]} 31. Qf2 {[%clk 0:00:48.2]} 31... Rg7 {[%clk 0:01:45.7]} 32.
Ne2 {[%clk 0:00:42.8]} 32... Rc8 {[%clk 0:01:39.1]} 33. Rc3 {[%clk 0:00:33.9]}
33... Rxc3 {[%clk 0:01:37.7]} 34. Bxc3 {[%clk 0:00:34.5]} 34... Be7 {[%clk
0:01:30.7]} 35. Ng3 {[%clk 0:00:20.2]} 35... Nh4 {[%clk 0:01:22.8]} 36. Bxe8
{[%clk 0:00:19.8]} 36... Qxe8 {[%clk 0:01:23.7]} 37. Ne2 {[%clk 0:00:20.1]}
37... Rxg1+ {[%clk 0:01:22.1]} 38. Qxg1 {[%clk 0:00:21]} 38... Qh5 {[%clk
0:01:13.4]} 39. Qf2 {[%clk 0:00:20.7]} 39... Nf3 {[%clk 0:01:08]} 40. Qg3 {[%clk
0:00:19.8]} 40... Nxe5 {[%clk 0:00:49.6]} 41. Ng1 {[%clk 0:00:16.6]} 41... Ng4
{[%clk 0:00:46.2]} 42. Kg2 {[%clk 0:00:15.2]} 42... Nf6 {[%clk 0:00:36.8]} 43.
h3 {[%clk 0:00:15.3]} 43... Ne4 {[%clk 0:00:35.1]} 44. Qe3 {[%clk 0:00:15.9]}
44... Qg6+ {[%clk 0:00:33]} 45. Kh1 {[%clk 0:00:15.3]} 45... Ng3+ {[%clk
0:00:30.6]} 46. Kh2 {[%clk 0:00:15.5]} 46... Nf1+ {[%clk 0:00:30.6]} 47. Kh1
{[%clk 0:00:15.8]} 47... Nxe3 {[%clk 0:00:30.8]} 48. Kh2 {[%clk 0:00:16.5]}
48... Qg2# {[%clk 0:00:30.6]} 0-1

[Event "Early-Titled-Tuesday-Blitz-February-06-2024"]
[Site "Chess.com"]
[Date "2024.02.06"]
[Round "5"]
[White "Dubs123"]
[Black "ArturoCaceres"]
[Result "1-0"]
[WhiteElo "2321"]
[BlackElo "2491"]
[TimeControl "180+1"]
[EndTime "8:55:24 PST"]
[Termination "Dubs123 won on time"]

1. d4 {[%clk 0:02:56.5]} 1... e5 {[%clk 0:02:54.8]} 2. dxe5 {[%clk 0:02:55.9]}
2... d6 {[%clk 0:02:54.9]} 3. Nf3 {[%clk 0:02:55.1]} 3... Nc6 {[%clk 0:02:54]}
4. Bf4 {[%clk 0:02:53.4]} 4... d5 {[%clk 0:02:47.5]} 5. e3 {[%clk 0:02:51.4]}
5... Nge7 {[%clk 0:02:45]} 6. Nc3 {[%clk 0:02:50.7]} 6... Be6 {[%clk 0:02:44.8]}
7. Bb5 {[%clk 0:02:47.4]} 7... a6 {[%clk 0:02:44.2]} 8. Bxc6+ {[%clk 0:02:44.8]}
8... Nxc6 {[%clk 0:02:43.7]} 9. Nd4 {[%clk 0:02:45.4]} 9... Bb4 {[%clk
0:02:37.9]} 10. Nxe6 {[%clk 0:02:43.5]} 10... fxe6 {[%clk 0:02:38.8]} 11. O-O
{[%clk 0:02:38.7]} 11... O-O {[%clk 0:01:19.4]} 12. Ne2 {[%clk 0:02:33.6]} 12...
Qd7 {[%clk 0:01:12.9]} 13. Bg3 {[%clk 0:02:26.4]} 13... Be7 {[%clk 0:01:04.1]}
14. Nd4 {[%clk 0:02:20.3]} 14... Nd8 {[%clk 0:01:04.6]} 15. c4 {[%clk
0:02:17.9]} 15... dxc4 {[%clk 0:01:01.5]} 16. Qc2 {[%clk 0:02:05.1]} 16... b5
{[%clk 0:00:58.7]} 17. Rad1 {[%clk 0:02:02.8]} 17... Qe8 {[%clk 0:00:44.4]} 18.
f4 {[%clk 0:01:59.8]} 18... c5 {[%clk 0:00:44.3]} 19. Nf3 {[%clk 0:01:58.4]}
19... Nc6 {[%clk 0:00:43.8]} 20. Qe4 {[%clk 0:01:52.9]} 20... Nb4 {[%clk
0:00:41.3]} 21. a3 {[%clk 0:01:45.7]} 21... Nd5 {[%clk 0:00:40.9]} 22. f5 {[%clk
0:01:27.9]} 22... Rd8 {[%clk 0:00:23.5]} 23. fxe6 {[%clk 0:01:23.1]} 23... Qc6
{[%clk 0:00:15.7]} 24. Nh4 {[%clk 0:01:15.2]} 24... Rxf1+ {[%clk 0:00:13.8]} 25.
Rxf1 {[%clk 0:01:14.6]} 25... Qxe6 {[%clk 0:00:12.1]} 26. Nf5 {[%clk 0:01:09.9]}
26... Bf8 {[%clk 0:00:12.6]} 27. Qh4 {[%clk 0:00:53.9]} 27... Re8 {[%clk
0:00:06.8]} 28. e4 {[%clk 0:00:49.9]} 28... Nb6 {[%clk 0:00:04.3]} 29. Nd6
{[%clk 0:00:33.5]} 29... Bxd6 {[%clk 0:00:04.1]} 30. exd6 {[%clk 0:00:34.4]}
30... Qxe4 {[%clk 0:00:04]} 31. Qh5 {[%clk 0:00:31]} 31... g6 {[%clk 0:00:03.6]}
32. Qg5 {[%clk 0:00:30.9]} 32... Nd7 {[%clk 0:00:02.2]} 33. Qd2 {[%clk
0:00:22.2]} 33... Qd4+ {[%clk 0:00:00.8]} 34. Qf2 {[%clk 0:00:20.8]} 1-0

[Event "Early-Titled-Tuesday-Blitz-February-06-2024"]
[Site "Chess.com"]
[Date "2024.02.06"]
[Round "5"]
[White "JohnWhite1952"]
[Black "NM_Antelacus"]
[Result "0-1"]
[WhiteElo "1969"]
[BlackElo "2230"]
[TimeControl "180+1"]
[EndTime "8:55:25 PST"]
[Termination "NM_Antelacus won on time"]

1. e4 {[%clk 0:02:57.4]} 1... c5 {[%clk 0:02:59.5]} 2. Nf3 {[%clk 0:02:56.3]}
2... Nc6 {[%clk 0:02:59.5]} 3. d4 {[%clk 0:02:55.8]} 3... cxd4 {[%clk
0:03:00.4]} 4. Nxd4 {[%clk 0:02:55.8]} 4... Nf6 {[%clk 0:03:00.6]} 5. Nc3 {[%clk
0:02:55.5]} 5... e5 {[%clk 0:03:00.5]} 6. Ndb5 {[%clk 0:02:54]} 6... d6 {[%clk
0:03:00.7]} 7. Na3 {[%clk 0:02:52]} 7... a6 {[%clk 0:03:00.4]} 8. f3 {[%clk
0:02:46.4]} 8... b5 {[%clk 0:02:58.8]} 9. Nd5 {[%clk 0:02:45.8]} 9... Be6 {[%clk
0:02:52.4]} 10. c4 {[%clk 0:02:39.4]} 10... b4 {[%clk 0:02:51.4]} 11. Nxf6+
{[%clk 0:02:36.3]} 11... Qxf6 {[%clk 0:02:47.1]} 12. Nc2 {[%clk 0:02:35.4]}
12... a5 {[%clk 0:02:45.4]} 13. Be3 {[%clk 0:02:28.2]} 13... Be7 {[%clk
0:02:42.7]} 14. b3 {[%clk 0:02:20.5]} 14... O-O {[%clk 0:02:41.5]} 15. Be2
{[%clk 0:02:19.5]} 15... Qg6 {[%clk 0:02:39.6]} 16. O-O {[%clk 0:02:15]} 16...
Kh8 {[%clk 0:02:32.3]} 17. Kh1 {[%clk 0:02:13.8]} 17... f5 {[%clk 0:02:31.4]}
18. Bd3 {[%clk 0:02:10.8]} 18... f4 {[%clk 0:02:29.5]} 19. Bf2 {[%clk
0:02:07.6]} 19... Qh6 {[%clk 0:02:21.8]} 20. Rc1 {[%clk 0:01:58.2]} 20... Rad8
{[%clk 0:02:19.1]} 21. Qe2 {[%clk 0:01:53]} 21... Bh4 {[%clk 0:02:16.3]} 22.
Bxh4 {[%clk 0:01:48.2]} 22... Qxh4 {[%clk 0:02:15.5]} 23. Qf2 {[%clk 0:01:43.6]}
23... Qxf2 {[%clk 0:02:11.4]} 24. Rxf2 {[%clk 0:01:42.9]} 24... a4 {[%clk
0:02:06.9]} 25. bxa4 {[%clk 0:01:35.6]} 25... Ra8 {[%clk 0:02:06.7]} 26. Rb1
{[%clk 0:01:34.5]} 26... Rxa4 {[%clk 0:02:05.7]} 27. Kg1 {[%clk 0:01:23.5]}
27... Rfa8 {[%clk 0:02:04.5]} 28. a3 {[%clk 0:01:13.5]} 28... bxa3 {[%clk
0:02:01.1]} 29. Ra1 {[%clk 0:01:12.9]} 29... a2 {[%clk 0:01:59.8]} 30. Ne1
{[%clk 0:01:07.4]} 30... Bxc4 {[%clk 0:01:57.7]} 31. Bxc4 {[%clk 0:01:06.7]}
31... Rxc4 {[%clk 0:01:57.7]} 32. Rfxa2 {[%clk 0:01:06.8]} 32... Rxa2 {[%clk
0:01:53.1]} 33. Rxa2 {[%clk 0:01:06.4]} 33... Kg8 {[%clk 0:01:48.5]} 34. Ra6
{[%clk 0:01:04.4]} 34... Kf7 {[%clk 0:01:45.9]} 35. Nd3 {[%clk 0:01:01.4]} 35...
Rc2 {[%clk 0:01:41.8]} 36. Kf1 {[%clk 0:00:56.9]} 36... Ke6 {[%clk 0:01:40.6]}
37. Rb6 {[%clk 0:00:55.8]} 37... Nd4 {[%clk 0:01:37]} 38. Rb7 {[%clk 0:00:44.5]}
38... Rd2 {[%clk 0:01:31]} 39. Nf2 {[%clk 0:00:40]} 39... Nc2 {[%clk 0:01:26.6]}
40. Rc7 {[%clk 0:00:32.7]} 40... Ne3+ {[%clk 0:01:25.3]} 41. Ke1 {[%clk
0:00:30.1]} 41... Ra2 {[%clk 0:01:22.9]} 42. Rc1 {[%clk 0:00:24.7]} 42... Nxg2+
{[%clk 0:01:21.4]} 43. Kf1 {[%clk 0:00:24.4]} 43... Ne3+ {[%clk 0:01:20.6]} 44.
Kg1 {[%clk 0:00:21.8]} 44... g5 {[%clk 0:01:15.8]} 45. Nh3 {[%clk 0:00:18.5]}
45... h6 {[%clk 0:01:15.3]} 46. Nf2 {[%clk 0:00:17.7]} 46... Kf6 {[%clk
0:01:08.4]} 47. h3 {[%clk 0:00:12.6]} 47... h5 {[%clk 0:01:08.1]} 48. Rb1 {[%clk
0:00:09.2]} 48... g4 {[%clk 0:01:03.1]} 49. hxg4 {[%clk 0:00:08.7]} 49... hxg4
{[%clk 0:01:03.3]} 50. Nxg4+ {[%clk 0:00:07.8]} 50... Nxg4 {[%clk 0:01:02.9]}
51. fxg4 {[%clk 0:00:07.7]} 51... Kg5 {[%clk 0:01:03.3]} 52. Rb6 {[%clk
0:00:05.8]} 52... Rd2 {[%clk 0:01:02.9]} 53. Kf1 {[%clk 0:00:02.3]} 53... Kxg4
{[%clk 0:01:02.9]} 54. Ke1 {[%clk 0:00:02.5]} 54... Rd4 {[%clk 0:01:03]} 0-1